Workbook

Sheet TOC
B1: FY 2025-MID SESSION REVIEW
B2: TABLES
A5: I. | B5: Text Tables
A6: 1 | B6: Changes in Deficits from the Budget
A7: 2 | B7: Economic Assumptions
A8: 3 | B8: Comparison of Economic Assumptions
A9: 4 | B9: Changes in Receipts
A10: 5 | B10: Changes in Outlays
A12: II. | B12: Summary Tables
A13: 1 | B13: Budget Totals (S-1)
A14: 2 | B14: Baseline by Category (S-2)
A15: 3 | B15: Proposed Budget by Category (S-3)
A16: 4 | B16: Proposed Budget by Category as a Percent of GDP (S-4)
A17: 5 | B17: Estimated Spending from 2025 Balances of Budget Authority: Discretionary Programs (S-5)
A18: 6 | B18: Outlays for mandatory Programs Under Current Law (S-6)
A19: 7 | B19: Federal Government Financing and Debt (S-7)

Sheet Table 1
A1: Table 1. CHANGES IN DEFICITS FROM THE BUDGET
A2: (in billions of dollars)
B3: 2024 | C3: 2025 | D3: 2026 | E3: 2027 | F3: 2028 | G3: 2029 | H3: 2030 | I3: 2031 | J3: 2032 | K3: 2033 | L3: 2034 | M3: 2025-2029 | N3: 2025-2034
A4: 2025 Budget deficit.................................................................................................................................................... | B4: 1,859 | C4: 1,781 | D4: 1,547 | E4: 1,510 | F4: 1,573 | G4: 1,483 | H4: 1,640 | I4: 1,614 | J4: 1,671 | K4: 1,801 | L4: 1,677
A5: Percent of GDP............................................................................................................................................................................... | B5: 6.6% | C5: 6.1% | D5: 5.1% | E5: 4.7% | F5: 4.7% | G5: 4.3% | H5: 4.6% | I5: 4.3% | J5: 4.3% | K5: 4.4% | L5: 3.9%
A7: Enacted legislation:¹
A8: Consolidated Appropriations Act, 2024 Further Consolidated Appropriations Act, 2024 | B8: 4 | C8: 7 | D8: 1 | E8: 0 | F8: -1 | G8: -1 | H8: -1 | I8: 1 | J8: 2 | K8: 3 | L8: 2 | M8: 6 | N8: 14
A9: Making emergency supplemental appropriations for the fiscal year ending September 30, 2024, and for other purposes | B9: -16 | C9: 17 | D9: 1 | E9: 1 | F9: -1 | G9: -0 | H9: -0 | I9: -0 | J9: -0 | K9: -0 | L9: -0 | M9: 18 | N9: 17
A10: Debt service.............................................................................................................................................................................. | B10: -0 | C10: -0 | D10: 1 | E10: 1 | F10: 0 | G10: 0 | H10: 0 | I10: 0 | J10: 0 | K10: 1 | L10: 1 | M10: 2 | N10: 5
A11: Subtotal, enacted legislation………………………………......................................................................................... | B11: -12 | C11: 24 | D11: 3 | E11: 2 | F11: -1 | G11: -1 | H11: -1 | I11: 1 | J11: 2 | K11: 3 | L11: 3 | M11: 27 | N11: 36
A13: Economic and technical reestimates:
A14: Receipts............................................................................................................................................................................... | B14: 80 | C14: -77 | D14: -139 | E14: -146 | F14: -142 | G14: -106 | H14: -76 | I14: -54 | J14: -42 | K14: -62 | L14: -94 | M14: -610 | N14: -939
A15: Outlays:
A16: Discretionary programs....................................................................................... | B16: -45 | C16: -2 | D16: 21 | E16: 16 | F16: 16 | G16: 8 | H16: 8 | I16: 1 | J16: -0 | K16: -0 | L16: -0 | M16: 59 | N16: 67
A17: Mandatory:
A18: Medicaid | B18: 46 | C18: 54 | D18: 58 | E18: 65 | F18: 66 | G18: 75 | H18: 80 | I18: 83 | J18: 88 | K18: 93 | L18: 101 | M18: 319 | N18: 764
A19: Refundable Premium Tax Credit & Cost-Sharing Reductions | B19: 17 | C19: 24 | D19: 28 | E19: 29 | F19: 32 | G19: 34 | H19: 35 | I19: 36 | J19: 38 | K19: 40 | L19: 42 | M19: 147 | N19: 337
A20: Medicare | B20: 11 | C20: 18 | D20: 15 | E20: 19 | F20: 25 | G20: 23 | H20: 28 | I20: 31 | J20: 35 | K20: 24 | L20: 81 | M20: 100 | N20: 298
A21: Income security for veterans | B21: 2 | C21: 20 | D21: 23 | E21: 26 | F21: 29 | G21: 27 | H21: 30 | I21: 32 | J21: 32 | K21: 36 | L21: 34 | M21: 125 | N21: 288
A22: SNAP | B22: -18 | C22: -10 | D22: -13 | E22: -14 | F22: -14 | G22: -15 | H22: -16 | I22: -17 | J22: -18 | K22: -19 | L22: -20 | M22: -67 | N22: -157
A23: Social Security | B23: 2 | C23: 9 | D23: 11 | E23: 12 | F23: 11 | G23: 9 | H23: 8 | I23: 9 | J23: 10 | K23: 13 | L23: 15 | M23: 51 | N23: 106
A24: Unemployment compensation | B24: -12 | C24: -8 | D24: -7 | E24: -8 | F24: -9 | G24: -5 | H24: -6 | I24: -6 | J24: -6 | K24: -7 | L24: -7 | M24: -36 | N24: -69
A25: FDIC | B25: -3 | C25: -29 | D25: -0 | E25: 3 | F25: -4 | G25: -8 | H25: -8 | I25: -3 | J25: -1 | K25: 8 | L25: -8 | M25: -38 | N25: -52
A26: Veterans' readjustment benefits | B26: 1 | C26: 2 | D26: 3 | E26: 3 | F26: 3 | G26: 3 | H26: 4 | I26: 4 | J26: 4 | K26: 4 | L26: 5 | M26: 15 | N26: 35
A27: Other……………………………………................................................................................................................................................................................ | B27: -65 | C27: 52 | D27: 33 | E27: 15 | F27: 14 | G27: 7 | H27: 13 | I27: 19 | J27: 22 | K27: 11 | L27: 15 | M27: 121 | N27: 202
A28: Total mandatory ....................................................................................... | B28: -18 | C28: 132 | D28: 149 | E28: 151 | F28: 154 | G28: 150 | H28: 168 | I28: 187 | J28: 203 | K28: 203 | L28: 257 | M28: 736 | N28: 1,754
A29: Net interest².............................................................................................................................................................................. | B29: 9 | C29: 19 | D29: 20 | E29: 2 | F29: -14 | G29: 8 | H29: 23 | I29: 36 | J29: 47 | K29: 57 | L29: 63 | M29: 36 | N29: 261
A30: Subtotal, outlays....................................................................................... | B30: -54 | C30: 149 | D30: 191 | E30: 169 | F30: 156 | G30: 166 | H30: 198 | I30: 224 | J30: 249 | K30: 259 | L30: 320 | M30: 831 | N30: 2,082
A31: Subtotal, economic and technical reestimates....................................................................................... | B31: 26 | C31: 72 | D31: 52 | E31: 23 | F31: 14 | G31: 60 | H31: 122 | I31: 170 | J31: 207 | K31: 197 | L31: 226 | M31: 221 | N31: 1,143
A33: Total, changes.............................................................................................................................................................................. | B33: 14 | C33: 97 | D33: 55 | E33: 25 | F33: 13 | G33: 59 | H33: 121 | I33: 171 | J33: 210 | K33: 200 | L33: 229 | M33: 248 | N33: 1,179
A35: Mid-Session Review deficit....................................................................................... | B35: 1,874 | C35: 1,878 | D35: 1,601 | E35: 1,535 | F35: 1,586 | G35: 1,542 | H35: 1,762 | I35: 1,785 | J35: 1,881 | K35: 2,001 | L35: 1,905
A36: Percent of GDP.............................................................................................................................................................................. | B36: 6.6% | C36: 6.3% | D36: 5.2% | E36: 4.8% | F36: 4.7% | G36: 4.4% | H36: 4.8% | I36: 4.7% | J36: 4.7% | K36: 4.8% | L36: 4.4%
A38: Note: negative figures represent higher receipts or lower outlays.
A39: *$500 million or less.
A40: ¹ Includes outlay and receipt effects.
A41: ² Includes debt service on all reestimates.

Sheet Table 2
A1: Table 2. ECONOMIC ASSUMPTIONS1
A2: (Calendar years, Dollar amounts in billions)
B3: Actual | C3: Projections
B4: 2023 | C4: =B4+1 -> 2024 | D4: =C4+1 -> 2025 | E4: 2026 | F4: 2027 | G4: 2028 | H4: 2029 | I4: 2030 | J4: 2031 | K4: 2032 | L4: 2033 | M4: 2034
A6: Gross Domestic Product (GDP):
A7: Percent Change, Fourth-Quarter-over-Fourth-Quarter:
A8: Current Dollars.............................................................................................................................................................................. | B8: 5.9 | C8: 4.6 | D8: 4.4 | E8: 4.1 | F8: 4.1 | G8: 4.1 | H8: 4.2 | I8: 4.3 | J8: 4.4 | K8: 4.4 | L8: 4.4 | M8: 4.4
A9: Real, Chained (2012) Dollars.............................................................................................................................................................................. | B9: 3.1 | C9: 1.9 | D9: 2.1 | E9: 2 | F9: 2 | G9: 2 | H9: 2 | I9: 2.2 | J9: 2.2 | K9: 2.2 | L9: 2.2 | M9: 2.2
A10: Chained Price Index (2012=100).............................................................................................................................................................................. | B10: 2.6 | C10: 2.7 | D10: 2.2 | E10: 2.1 | F10: 2.1 | G10: 2.1 | H10: 2.1 | I10: 2.1 | J10: 2.1 | K10: 2.1 | L10: 2.1 | M10: 2.1
A12: Incomes, Billions of Current Dollars:
A13: Domestic Corporate Profits.............................................................................................................................................................................. | B13: 2747 | C13: 2835 | D13: 2558 | E13: 2483 | F13: 2583 | G13: 2780 | H13: 2984 | I13: 3210 | J13: 3459 | K13: 3715 | L13: 3969 | M13: 4271
A14: Employee Compensation.............................................................................................................................................................................. | B14: 14254 | C14: 15036 | D14: 15781 | E14: 16514 | F14: 17285 | G14: 18083 | H14: 18893 | I14: 19731 | J14: 20602 | K14: 21514 | L14: 22469 | M14: 23466
A15: Wages and Salaries.............................................................................................................................................................................. | B15: 11816 | C15: 12459 | D15: 13072 | E15: 13672 | F15: 14305 | G15: 14966 | H15: 15635 | I15: 16327 | J15: 17049 | K15: 17794 | L15: 18575 | M15: 19405
A16: Other Taxable Income.............................................................................................................................................................................. | B16: 6429 | C16: 6700 | D16: 7073 | E16: 7440 | F16: 7788 | G16: 8183 | H16: 8572 | I16: 8960 | J16: 9383 | K16: 9788 | L16: 10276 | M16: 10771
A18: Consumer Price Index (All Urban)2:
A19: Level, Annual Average.............................................................................................................................................................................. | B19: 304.7 | C19: 314.6 | D19: 322.2 | E19: 329.6 | F19: 337.2 | G19: 344.9 | H19: 352.9 | I19: 361 | J19: 369.3 | K19: 377.8 | L19: 386.5 | M19: 395.4
A20: Percent Change, Fourth-Quarter-over-Fourth-Quarter.............................................................................................................................................................................. | B20: 3.2 | C20: 3.1 | D20: 2.3 | E20: 2.3 | F20: 2.3 | G20: 2.3 | H20: 2.3 | I20: 2.3 | J20: 2.3 | K20: 2.3 | L20: 2.3 | M20: 2.3
A22: Unemployment Rate, Civilian, Percent:
A23: Fourth Quarter Level.............................................................................................................................................................................. | B23: 3.8 | C23: 3.8 | D23: 3.8 | E23: 3.8 | F23: 3.8 | G23: 3.8 | H23: 3.8 | I23: 3.8 | J23: 3.8 | K23: 3.8 | L23: 3.8 | M23: 3.8
A24: Annual Average.............................................................................................................................................................................. | B24: 3.6 | C24: 3.8 | D24: 3.8 | E24: 3.8 | F24: 3.8 | G24: 3.8 | H24: 3.8 | I24: 3.8 | J24: 3.8 | K24: 3.8 | L24: 3.8 | M24: 3.8
A26: Federal Pay Raises, January, Percent:
A27: Civilian3.............................................................................................................................................................................. | B27: 4.6 | C27: 5.2 | D27: 2 | E27: NA | F27: NA | G27: NA | H27: NA | I27: NA | J27: NA | K27: NA | L27: NA | M27: NA
A28: Military4.............................................................................................................................................................................. | B28: 4.6 | C28: 5.2 | D28: 4.5 | E28: NA | F28: NA | G28: NA | H28: NA | I28: NA | J28: NA | K28: NA | L28: NA | M28: NA
A30: Interest Rates, Percent:
A31: 91-Day Treasury Bills5.............................................................................................................................................................................. | B31: 5.1 | C31: 5.2 | D31: 4.3 | E31: 3.5 | F31: 3 | G31: 2.8 | H31: 2.8 | I31: 2.8 | J31: 2.8 | K31: 2.8 | L31: 2.8 | M31: 2.8
A32: 10-Year Treasury Notes.............................................................................................................................................................................. | B32: 4 | C32: 4.3 | D32: 4.1 | E32: 4 | F32: 3.9 | G32: 3.9 | H32: 3.8 | I32: 3.8 | J32: 3.8 | K32: 3.8 | L32: 3.8 | M32: 3.8
A34: 1 Based on information available as of May 28, 2024.
A35: 2 Seasonally Adjusted.
A36: 3 Overall average increase, including locality pay adjustments; percentages to be proposed for years after 2025 have yet to be determined.
A37: 4 Percentages apply to basic pay only; value for 2024 is actual; percentages to be proposed for years after 2025 have yet to be determined.
A38: 5 Average rate, secondary market (bank discount basis).

Sheet Table 3
A1: Table 3. COMPARISON OF ECONOMIC ASSUMPTIONS
A2: (Calendar Years)
B3: 2024 | C3: =B3+1 -> 2025 | D3: =C3+1 -> 2026 | E3: 2027 | F3: 2028 | G3: 2029 | H3: 2030 | I3: 2031 | J3: 2032 | K3: 2033 | L3: 2034
A5: Real GDP (Fourth-Quarter-over-Fourth-Quarter growth rates):
A6: 2025 MSR.............................................................................................................................................................................. | B6: 1.9 | C6: 2.1 | D6: 2 | E6: 2 | F6: 2 | G6: 2 | H6: 2.2 | I6: 2.2 | J6: 2.2 | K6: 2.2 | L6: 2.2
A7: 2025 Budget.............................................................................................................................................................................. | B7: 1.3 | C7: 2 | D7: 2 | E7: 2 | F7: 2 | G7: 2.1 | H7: 2.2 | I7: 2.2 | J7: 2.2 | K7: 2.2 | L7: 2.2
A8: CBO.............................................................................................................................................................................. | B8: 1.5 | C8: 2.2 | D8: 2.2 | E8: 2.1 | F8: 2.1 | G8: 2.1 | H8: 2 | I8: 1.9 | J8: 1.9 | K8: 1.8 | L8: 1.8
A9: Blue Chip.............................................................................................................................................................................. | B9: 1.7 | C9: 2 | D9: 2 | E9: 2 | F9: 1.9 | G9: 1.9 | H9: 1.9 | I9: 1.9 | J9: 1.9 | K9: 1.9 | L9: 1.9
A10: Federal Reserve.............................................................................................................................................................................. | B10: 2.1 | C10: 2 | D10: 2 | E10: 1.8 | F10: 1.8 | G10: 1.8 | H10: 1.8 | I10: 1.8 | J10: 1.8 | K10: 1.8 | L10: 1.8
A12: Consumer Price Index (Fourth-Quarter-over-Fourth-Quarter growth rates):
A13: =A6 -> 2025 MSR.............................................................................................................................................................................. | B13: 3.1 | C13: 2.3 | D13: 2.3 | E13: 2.3 | F13: 2.3 | G13: 2.3 | H13: 2.3 | I13: 2.3 | J13: 2.3 | K13: 2.3 | L13: 2.3
A14: =A7 -> 2025 Budget.............................................................................................................................................................................. | B14: 2.5 | C14: 2.3 | D14: 2.3 | E14: 2.3 | F14: 2.3 | G14: 2.3 | H14: 2.3 | I14: 2.3 | J14: 2.3 | K14: 2.3 | L14: 2.3
A15: CBO.............................................................................................................................................................................. | B15: 2.5 | C15: 2.5 | D15: 2.2 | E15: 2.2 | F15: 2.2 | G15: 2.2 | H15: 2.2 | I15: 2.2 | J15: 2.3 | K15: 2.3 | L15: 2.3
A16: Blue Chip.............................................................................................................................................................................. | B16: 3 | C16: 2.3 | D16: 2.2 | E16: 2.2 | F16: 2.2 | G16: 2.2 | H16: 2.2 | I16: 2.2 | J16: 2.2 | K16: 2.2 | L16: 2.2
A17: Federal Reserve1.............................................................................................................................................................................. | B17: 2.4 | C17: 2.2 | D17: 2 | E17: 2 | F17: 2 | G17: 2 | H17: 2 | I17: 2 | J17: 2 | K17: 2 | L17: 2
A19: Unemployment Rate (annual average):
A20: =A13 -> 2025 MSR.............................................................................................................................................................................. | B20: 3.8 | C20: 3.8 | D20: 3.8 | E20: 3.8 | F20: 3.8 | G20: 3.8 | H20: 3.8 | I20: 3.8 | J20: 3.8 | K20: 3.8 | L20: 3.8
A21: =A14 -> 2025 Budget.............................................................................................................................................................................. | B21: 4 | C21: 4 | D21: 3.9 | E21: 3.9 | F21: 3.8 | G21: 3.8 | H21: 3.8 | I21: 3.8 | J21: 3.8 | K21: 3.8 | L21: 3.8
A22: CBO.............................................................................................................................................................................. | B22: 4.2 | C22: 4.4 | D22: 4.3 | E22: 4.4 | F22: 4.4 | G22: 4.5 | H22: 4.5 | I22: 4.5 | J22: 4.5 | K22: 4.5 | L22: 4.5
A23: Blue Chip.............................................................................................................................................................................. | B23: 4 | C23: 4.1 | D23: 3.9 | E23: 3.9 | F23: 3.9 | G23: 4 | H23: 4 | I23: 4 | J23: 4 | K23: 4 | L23: 4
A24: Federal Reserve2.............................................................................................................................................................................. | B24: 4 | C24: 4.1 | D24: 4 | E24: 4.1 | F24: 4.1 | G24: 4.1 | H24: 4.1 | I24: 4.1 | J24: 4.1 | K24: 4.1 | L24: 4.1
A26: Interest Rates (annual average):
A27: 91-Day Treasury Bills (discount basis):
A28: 2025 MSR.............................................................................................................................................................................. | B28: 5.2 | C28: 4.3 | D28: 3.5 | E28: 3 | F28: 2.8 | G28: 2.8 | H28: 2.8 | I28: 2.8 | J28: 2.8 | K28: 2.8 | L28: 2.8
A29: 2025 Budget.............................................................................................................................................................................. | B29: 5.1 | C29: 4 | D29: 3.3 | E29: 3.1 | F29: 2.9 | G29: 2.8 | H29: 2.8 | I29: 2.7 | J29: 2.7 | K29: 2.7 | L29: 2.7
A30: CBO.............................................................................................................................................................................. | B30: 4.9 | C30: 3.8 | D30: 3.1 | E30: 2.8 | F30: 2.7 | G30: 2.7 | H30: 2.8 | I30: 2.8 | J30: 2.8 | K30: 2.8 | L30: 2.8
A31: Blue Chip.............................................................................................................................................................................. | B31: 5.2 | C31: 4.1 | D31: 3 | E31: 2.9 | F31: 2.9 | G31: 2.8 | H31: 2.8 | I31: 2.8 | J31: 2.8 | K31: 2.8 | L31: 2.8
A32: 10-Year Treasury Notes:
A33: =A28 -> 2025 MSR.............................................................................................................................................................................. | B33: 4.3 | C33: 4.1 | D33: 4 | E33: 3.9 | F33: 3.9 | G33: 3.8 | H33: 3.8 | I33: 3.8 | J33: 3.8 | K33: 3.8 | L33: 3.8
A34: =A29 -> 2025 Budget.............................................................................................................................................................................. | B34: 4.4 | C34: 4 | D34: 3.9 | E34: 3.8 | F34: 3.8 | G34: 3.7 | H34: 3.7 | I34: 3.7 | J34: 3.7 | K34: 3.7 | L34: 3.7
A35: CBO.............................................................................................................................................................................. | B35: 4.6 | C35: 4.6 | D35: 3.9 | E35: 3.8 | F35: 3.8 | G35: 3.9 | H35: 4 | I35: 4.1 | J35: 4.1 | K35: 4.1 | L35: 4.1
A36: Blue Chip.............................................................................................................................................................................. | B36: 4.3 | C36: 4 | D36: 3.5 | E36: 3.6 | F36: 3.6 | G36: 3.6 | H36: 3.6 | I36: 3.7 | J36: 3.7 | K36: 3.7 | L36: 3.7
A38: Sources: Administration; CBO, The Budget and Economic Outlook: 2024 to 2034, February 2024; March 2024 and May 2024 Blue Chip Economic Indicators, Aspen Publishers, Inc.; Federal Reserve Open Market Committee, March 20, 2024.
A39: The external forecasts reported are the most current available at the time the MSR forecast was finalized. MSR = 2025 Mid-Session Review (forecast date: May 2024) Budget = 2025 Budget (forecast date: November 2023) CBO = February 2024 Congressional Budget Office economic projections (forecast date: December 2023) Blue Chip = May 2024 Blue Chip Consensus forecast (2024-2025) extended with March 2024 Blue Chip Consensus (2026-2034); GDP and CPI growth after 2025 year-over-year; values over 2031-2034 are from 2031-2035 average provided by Blue Chip Federal Reserve = Median forecast across Federal Open Market Committee members (March 2024); values over 2027-2034 are from "longer run" forecasts
A40: 1 PCE inflation
A41: 2 Fourth quarter level of unemployment rate

Sheet Table 4
A1: Table 4. CHANGES IN RECEIPTS
A2: (In billions of dollars)
B4: 2024 | C4: =B4+1 -> 2025 | D4: 2026 | E4: 2027 | F4: 2028 | G4: 2029 | H4: 2030 | I4: 2031 | J4: 2032 | K4: 2033 | L4: 2034 | M4: 2025-2029 | N4: 2025-2034
A5: 2025 Budget estimate.................................................................... | B5: 5,082 | C5: 5,485 | D5: 5,873 | E5: 6,186 | F5: 6,510 | G5: 6,830 | H5: 7,164 | I5: 7,509 | J5: 7,873 | K5: 8,258 | L5: 8,639
A7: Changes in current law receipts due to revised
A8: economic assumptions:
A9: Individual income taxes....................................................................................... | B9: 1 | C9: 10 | D9: 20 | E9: 29 | F9: 42 | G9: 52 | H9: 56 | I9: 62 | J9: 68 | K9: 72 | L9: 79 | M9: =SUM(C9:G9) -> 153 | N9: =SUM(C9:L9) -> 490
A10: Corporation income taxes....................................................................................... | B10: 3 | C10: 10 | D10: 13 | E10: 13 | F10: 11 | G10: 8 | H10: 6 | I10: 5 | J10: 5 | K10: 5 | L10: 6 | M10: =SUM(C10:G10) -> 55 | N10: =SUM(C10:L10) -> 82
A11: Social insurance and retirement....................................................................................... | B11: 6 | C11: 13 | D11: 16 | E11: 18 | F11: 23 | G11: 27 | H11: 30 | I11: 32 | J11: 33 | K11: 34 | L11: 36 | M11: =SUM(C11:G11) -> 97 | N11: =SUM(C11:L11) -> 262
A12: Other....................................................................................... | B12: 3 | C12: 6 | D12: 6 | E12: 3 | F12: 2 | G12: 1 | H12: 1 | I12: -1 | J12: -1 | K12: -1 | L12: -3 | M12: =SUM(C12:G12) -> 17 | N12: =SUM(C12:L12) -> 12
A13: Total, changes due to revised economic assumptions....................................................................................... | B13: =SUM(B9:B12) -> 13 | C13: 39 | D13: 55 | E13: 63 | F13: 77 | G13: 88 | H13: 93 | I13: 99 | J13: 105 | K13: 111 | L13: 118 | M13: =SUM(C13:G13) -> 321 | N13: =SUM(C13:L13) -> 847
A15: Changes in current law receipts due to technical
A16: reestimates:
A17: Individual income taxes....................................................................................... | B17: -87 | C17: -4 | D17: 36 | E17: 30 | F17: 23 | G17: 15 | H17: 3 | I17: -11 | J17: -19 | K17: -26 | L17: -26 | M17: =SUM(C17:G17) -> 100 | N17: =SUM(C17:L17) -> 21
A18: Corporation income taxes....................................................................................... | B18: -8 | C18: 21 | D18: 30 | E18: 35 | F18: 26 | G18: 2 | H18: -9 | I18: -16 | J18: -25 | K18: -7 | L18: 13 | M18: =SUM(C18:G18) -> 115 | N18: =SUM(C18:L18) -> 72
A19: Social insurance and retirement....................................................................................... | B19: 11 | C19: 7 | D19: 7 | E19: 6 | F19: 5 | G19: 4 | H19: 1 | I19: -3 | J19: -4 | K19: -6 | L19: -10 | M19: =SUM(C19:G19) -> 29 | N19: =SUM(C19:L19) -> 7
A20: Other....................................................................................... | B20: -7 | C20: 5 | D20: -1 | E20: -6 | F20: -9 | G20: -10 | H20: -10 | I20: -10 | J20: -10 | K20: -11 | L20: -11 | M20: =SUM(C20:G20) -> -22 | N20: =SUM(C20:L20) -> -75
A21: Total, changes due to technical re-estimates....................................................................................... | B21: =SUM(B17:B20) -> -92 | C21: 29 | D21: 72 | E21: 65 | F21: 46 | G21: 11 | H21: -15 | I21: -40 | J21: -59 | K21: -49 | L21: -35 | M21: =SUM(C21:G21) -> 222 | N21: =SUM(C21:L21) -> 24
A23: Changes in current law receipts due to enacted legislation/1 ....................................................................................... | B23: 0 | C23: 0 | D23: 0 | E23: 0 | F23: 0 | G23: 0 | H23: 0 | I23: 0 | J23: 0 | K23: 0 | L23: 0 | M23: =SUM(C23:G23) -> 0 | N23: =SUM(C23:L23) -> 0
A25: Changes in proposals due to enacted legislation and economic
A26: and technical revisions....................................................................................... | B26: -1 | C26: 9 | D26: 12 | E26: 19 | F26: 20 | G26: 7 | H26: -2 | I26: -5 | J26: -4 | K26: 1 | L26: 11 | M26: =SUM(C26:G26) -> 66 | N26: =SUM(C26:L26) -> 67
A27: Total, changes in proposals ....................................................................................... | B27: =B26 -> -1 | C27: 9 | D27: 12 | E27: 19 | F27: 20 | G27: 7 | H27: -2 | I27: -5 | J27: -4 | K27: 1 | L27: 11 | M27: =SUM(C27:G27) -> 66 | N27: =SUM(C27:L27) -> 67
A29: Total change in receipts..................................................................................................................................... | B29: =B13+B21+B23+B27 -> -80 | C29: 77 | D29: 139 | E29: 146 | F29: 142 | G29: 106 | H29: 76 | I29: 54 | J29: 42 | K29: 62 | L29: 94 | M29: =SUM(C29:G29) -> 610 | N29: =SUM(C29:L29) -> 939
A30: 2025 Mid-Session estimate....................................................................................... | B30: =B5+B29 -> 5,001 | C30: 5,562 | D30: 6,011 | E30: 6,332 | F30: 6,652 | G30: 6,936 | H30: 7,241 | I30: 7,563 | J30: 7,915 | K30: 8,321 | L30: 8,733
A32: * $500 million or less.
A33: 1/ The Further Consolidated Appropriations Act, 2024 (Public Law 118-47) reduced receipts by $127 billion, due to a rescission of $20.2 billion in enforcement resources that were provided to the Internal Revenue Service in the Inflation Reduction Act. However, this rescission and the related revenue effects were assumed in the Budget’s adjusted baseline, so there is no net effect on total receipts.

Sheet Table 5
A1: Table 5. CHANGES IN OUTLAYS
A2: (In billions of dollars)
B3: 2024 | C3: 2025 | D3: 2026 | E3: 2027 | F3: 2028 | G3: 2029 | H3: 2030 | I3: 2031 | J3: 2032 | K3: 2033 | L3: 2034 | M3: 2025-2029 | N3: 2025-2034
A5: 2025 Budget estimate............................................................................................................................. | B5: 6,941 | C5: 7,266 | D5: 7,419 | E5: 7,697 | F5: 8,083 | G5: 8,313 | H5: 8,805 | I5: 9,123 | J5: 9,544 | K5: 10,060 | L5: 10,316
A7: Changes due to enacted legislation:
A8: Consolidated Appropriations Act, 2024 Further Consolidated Appropriations Act, 2024 | B8: 4 | C8: 7 | D8: 1 | E8: 0 | F8: -1 | G8: -1 | H8: -1 | I8: 1 | J8: 2 | K8: 3 | L8: 2 | M8: 6 | N8: 14
A9: Making emergency supplemental appropriations for the fiscal year ending September 30, 2024, and for other purposes | B9: -16 | C9: 17 | D9: 1 | E9: 1 | F9: -1 | G9: -0 | H9: -0 | I9: -0 | J9: -0 | K9: -0 | L9: -0 | M9: 18 | N9: 17
A10: Debt service.............................................................................................................................................................................. | B10: -0 | C10: -0 | D10: 1 | E10: 1 | F10: 0 | G10: 0 | H10: 0 | I10: 0 | J10: 0 | K10: 1 | L10: 1 | M10: 2 | N10: 5
A11: Subtotal, enacted legislation………………………………......................................................................................... | B11: -12 | C11: 24 | D11: 3 | E11: 2 | F11: -1 | G11: -1 | H11: -1 | I11: 1 | J11: 2 | K11: 3 | L11: 3 | M11: 27 | N11: 36
A12: Changes due to reestimates:
A13: Discretionary appropriations:
A14: Defense programs.............................................................................................................................................................................. | B14: -39 | C14: -8 | D14: 14 | E14: 13 | F14: 13 | G14: 6 | H14: 7 | I14: 1 | J14: 0 | K14: 0 | L14: -0 | M14: 37 | N14: 46
A15: Non-defense programs.............................................................................................................................................................................. | B15: -5 | C15: 6 | D15: 8 | E15: 3 | F15: 3 | G15: 3 | H15: 1 | I15: -0 | J15: -0 | K15: -1 | L15: -0 | M15: 22 | N15: 21
A16: Subtotal, discretionary appropriations....................................................................................... | B16: -45 | C16: -2 | D16: 21 | E16: 16 | F16: 16 | G16: 8 | H16: 8 | I16: 1 | J16: -0 | K16: -0 | L16: -0 | M16: 59 | N16: 67
A17: Medicaid | B17: 46 | C17: 54 | D17: 58 | E17: 65 | F17: 66 | G17: 75 | H17: 80 | I17: 83 | J17: 88 | K17: 93 | L17: 101 | M17: 319 | N17: 764
A18: Refundable Premium Tax Credit & Cost-Sharing Reductions | B18: 17 | C18: 24 | D18: 28 | E18: 29 | F18: 32 | G18: 34 | H18: 35 | I18: 36 | J18: 38 | K18: 40 | L18: 42 | M18: 147 | N18: 337
A19: Medicare | B19: 11 | C19: 18 | D19: 15 | E19: 19 | F19: 25 | G19: 23 | H19: 28 | I19: 31 | J19: 35 | K19: 24 | L19: 81 | M19: 100 | N19: 298
A20: Income security for veterans | B20: 2 | C20: 20 | D20: 23 | E20: 26 | F20: 29 | G20: 27 | H20: 30 | I20: 32 | J20: 32 | K20: 36 | L20: 34 | M20: 125 | N20: 288
A21: SNAP | B21: -18 | C21: -10 | D21: -13 | E21: -14 | F21: -14 | G21: -15 | H21: -16 | I21: -17 | J21: -18 | K21: -19 | L21: -20 | M21: -67 | N21: -157
A22: Social Security | B22: 2 | C22: 9 | D22: 11 | E22: 12 | F22: 11 | G22: 9 | H22: 8 | I22: 9 | J22: 10 | K22: 13 | L22: 15 | M22: 51 | N22: 106
A23: Unemployment compensation | B23: -12 | C23: -8 | D23: -7 | E23: -8 | F23: -9 | G23: -5 | H23: -6 | I23: -6 | J23: -6 | K23: -7 | L23: -7 | M23: -36 | N23: -69
A24: FDIC | B24: -3 | C24: -29 | D24: -0 | E24: 3 | F24: -4 | G24: -8 | H24: -8 | I24: -3 | J24: -1 | K24: 8 | L24: -8 | M24: -38 | N24: -52
A25: Veterans' readjustment benefits | B25: 1 | C25: 2 | D25: 3 | E25: 3 | F25: 3 | G25: 3 | H25: 4 | I25: 4 | J25: 4 | K25: 4 | L25: 5 | M25: 15 | N25: 35
A26: Other……………………………………................................................................................................................................................................................ | B26: -65 | C26: 52 | D26: 33 | E26: 15 | F26: 14 | G26: 7 | H26: 13 | I26: 19 | J26: 22 | K26: 11 | L26: 15 | M26: 121 | N26: 202
A27: Net interest1 ……………………………………………......................................................................................... | B27: 9 | C27: 19 | D27: 20 | E27: 2 | F27: -14 | G27: 8 | H27: 23 | I27: 36 | J27: 47 | K27: 57 | L27: 63 | M27: 36 | N27: 261
A28: Subtotal, reestimates …………………………........................................................................................ | B28: -54 | C28: 149 | D28: 191 | E28: 169 | F28: 156 | G28: 166 | H28: 198 | I28: 224 | J28: 249 | K28: 259 | L28: 320 | M28: 831 | N28: 2,082
A30: Total change in outlays …………………………………......................................................................................... | B30: -66 | C30: 173 | D30: 193 | E30: 171 | F30: 155 | G30: 165 | H30: 198 | I30: 225 | J30: 252 | K30: 262 | L30: 323 | M30: 858 | N30: 2,118
A32: Mid-Session Review estimate ……………………………………....................................................................................... | B32: 6,875 | C32: 7,439 | D32: 7,613 | E32: 7,867 | F32: 8,238 | G32: 8,478 | H32: 9,003 | I32: 9,349 | J32: 9,796 | K32: 10,322 | L32: 10,638
A34: *$500 million or less.
A35: /1 Includes debt service on all reestimates.

Sheet S-1
A1: Table S-1. Budget Totals
A2: (In billions of dollars and as a percent of GDP)
N3: Totals
B4: 2023 | C4: 2024 | D4: 2025 | E4: 2026 | F4: 2027 | G4: 2028 | H4: 2029 | I4: 2030 | J4: 2031 | K4: 2032 | L4: 2033 | M4: 2034 | N4: 2025-2029 | O4: 2025-2034
A6: Budget totals in billions of bollars:
A7: Receipts....................................................................................... | B7: 4,441 | C7: 5,001 | D7: 5,562 | E7: 6,011 | F7: 6,332 | G7: 6,652 | H7: 6,936 | I7: 7,241 | J7: 7,563 | K7: 7,915 | L7: 8,321 | M7: 8,733 | N7: 31,494 | O7: 71,266
A8: Outlays....................................................................................... | B8: 6,135 | C8: 6,875 | D8: 7,439 | E8: 7,613 | F8: 7,867 | G8: 8,238 | H8: 8,478 | I8: 9,003 | J8: 9,349 | K8: 9,796 | L8: 10,322 | M8: 10,638 | N8: 39,635 | O8: 88,742
A9: Deficit....................................................................................... | B9: 1,694 | C9: 1,874 | D9: 1,878 | E9: 1,601 | F9: 1,535 | G9: 1,586 | H9: 1,542 | I9: 1,762 | J9: 1,785 | K9: 1,881 | L9: 2,001 | M9: 1,905 | N9: 8,142 | O9: 17,476
A11: Debt held by the public....................................................................................... | B11: 26,236 | C11: 28,201 | D11: 30,102 | E11: 31,798 | F11: 33,446 | G11: 35,110 | H11: 36,710 | I11: 38,532 | J11: 40,369 | K11: 42,289 | L11: 44,327 | M11: 46,272
A12: Debt held by the public net of financial assets....................................................................................... | B12: 23,728 | C12: 25,602 | D12: 27,483 | E12: 29,089 | F12: 30,624 | G12: 32,210 | H12: 33,752 | I12: 35,516 | J12: 37,302 | K12: 39,183 | L12: 41,185 | M12: 43,090
A14: Gross domestic product (GDP)....................................................................................... | B14: 26,974 | C14: 28,445 | D14: 29,744 | E14: 31,009 | F14: 32,292 | G14: 33,630 | H14: 35,026 | I14: 36,500 | J14: 38,085 | K14: 39,743 | L14: 41,477 | M14: 43,285
A16: Budget totals as a percent of GDP:
A17: Receipts....................................................................................... | B17: 16.5% | C17: 17.6% | D17: 18.7% | E17: 19.4% | F17: 19.6% | G17: 19.8% | H17: 19.8% | I17: 19.8% | J17: 19.9% | K17: 19.9% | L17: 20.1% | M17: 20.2% | N17: 19.5% | O17: 19.7%
A18: Outlays....................................................................................... | B18: 22.7% | C18: 24.2% | D18: 25.0% | E18: 24.5% | F18: 24.4% | G18: 24.5% | H18: 24.2% | I18: 24.7% | J18: 24.5% | K18: 24.6% | L18: 24.9% | M18: 24.6% | N18: 24.5% | O18: 24.6%
A19: Deficit....................................................................................... | B19: 6.3% | C19: 6.6% | D19: 6.3% | E19: 5.2% | F19: 4.8% | G19: 4.7% | H19: 4.4% | I19: 4.8% | J19: 4.7% | K19: 4.7% | L19: 4.8% | M19: 4.4% | N19: 5.1% | O19: 4.9%
A21: Debt held by the public....................................................................................... | B21: 97.3% | C21: 99.1% | D21: 101.2% | E21: 102.5% | F21: 103.6% | G21: 104.4% | H21: 104.8% | I21: 105.6% | J21: 106.0% | K21: 106.4% | L21: 106.9% | M21: 106.9%
A22: Debt held by the public net of financial assets....................................................................................... | B22: 88.0% | C22: 90.0% | D22: 92.4% | E22: 93.8% | F22: 94.8% | G22: 95.8% | H22: 96.4% | I22: 97.3% | J22: 97.9% | K22: 98.6% | L22: 99.3% | M22: 99.5%
A24: Memorandum, real net interest:
A25: Real net interest in billions of dollars....................................................................................... | B25: -450 | C25: 227 | D25: 279 | E25: 387 | F25: 408 | G25: 420 | H25: 458 | I25: 491 | J25: 527 | K25: 563 | L25: 591 | M25: 612 | N25: 1,954 | O25: 4,738
A26: Real net interest as a percent of GDP....................................................................................... | B26: -1.7% | C26: 0.8% | D26: 0.9% | E26: 1.2% | F26: 1.3% | G26: 1.2% | H26: 1.3% | I26: 1.3% | J26: 1.4% | K26: 1.4% | L26: 1.4% | M26: 1.4% | N26: 1.2% | O26: 1.3%

Sheet S-2
A1: Table S-2. Baseline by Category
A2: (In billions of dollars)
N3: Totals
B4: 2023 | C4: 2024 | D4: 2025 | E4: 2026 | F4: 2027 | G4: 2028 | H4: 2029 | I4: 2030 | J4: 2031 | K4: 2032 | L4: 2033 | M4: 2034 | N4: 2025-2029 | O4: 2025-2034
A6: Outlays:
A7: Discretionary programs:
A8: Defense .............................................................................................................................................................................. | B8: 806 | C8: 840 | D8: 901 | E8: 922 | F8: 938 | G8: 952 | H8: 964 | I8: 979 | J8: 999 | K8: 1,022 | L8: 1,046 | M8: 1,070 | N8: 4,677 | O8: 9,793
A9: Non-defense .............................................................................................................................................................................. | B9: 912 | C9: 976 | D9: 1,024 | E9: 1,012 | F9: 1,016 | G9: 1,018 | H9: 1,028 | I9: 1,047 | J9: 1,067 | K9: 1,090 | L9: 1,115 | M9: 1,139 | N9: 5,097 | O9: 10,556
A10: Subtotal, discretionary programs....................................................................................... | B10: 1,718 | C10: 1,815 | D10: 1,925 | E10: 1,934 | F10: 1,954 | G10: 1,970 | H10: 1,992 | I10: 2,026 | J10: 2,066 | K10: 2,112 | L10: 2,161 | M10: 2,210 | N10: 9,774 | O10: 20,350
A11: Mandatory programs:
A12: Social Security.............................................................................................................................................................................. | B12: 1,348 | C12: 1,454 | D12: 1,552 | E12: 1,648 | F12: 1,741 | G12: 1,835 | H12: 1,928 | I12: 2,026 | J12: 2,127 | K12: 2,231 | L12: 2,338 | M12: 2,446 | N12: 8,704 | O12: 19,873
A13: Medicare.............................................................................................................................................................................. | B13: 839 | C13: 850 | D13: 954 | E13: 1,012 | F13: 1,095 | G13: 1,244 | H13: 1,200 | I13: 1,364 | J13: 1,455 | K13: 1,570 | L13: 1,811 | M13: 1,848 | N13: 5,504 | O13: 13,551
A14: Medicaid.............................................................................................................................................................................. | B14: 616 | C14: 618 | D14: 640 | E14: 680 | F14: 727 | G14: 767 | H14: 816 | I14: 864 | J14: 918 | K14: 977 | L14: 1,037 | M14: 1,101 | N14: 3,630 | O14: 8,528
A15: Other mandatory programs....................................................................................... | B15: 955 | C15: 1,225 | D15: 1,084 | E15: 1,098 | F15: 1,080 | G15: 1,080 | H15: 1,134 | I15: 1,202 | J15: 1,231 | K15: 1,280 | L15: 1,342 | M15: 1,331 | N15: 5,476 | O15: 11,862
A16: Subtotal, mandatory programs....................................................................................... | B16: 3,758 | C16: 4,147 | D16: 4,231 | E16: 4,438 | F16: 4,642 | G16: 4,926 | H16: 5,077 | I16: 5,455 | J16: 5,732 | K16: 6,058 | L16: 6,528 | M16: 6,726 | N16: 23,315 | O16: 53,814
A17: Net interest.............................................................................................................................................................................. | B17: 658 | C17: 899 | D17: 991 | E17: 1,047 | F17: 1,094 | G17: 1,148 | H17: 1,233 | I17: 1,307 | J17: 1,390 | K17: 1,478 | L17: 1,563 | M17: 1,642 | N17: 5,514 | O17: 12,894
A18: Total outlays.............................................................................................................................................................................. | B18: 6,135 | C18: 6,861 | D18: 7,147 | E18: 7,419 | F18: 7,691 | G18: 8,045 | H18: 8,302 | I18: 8,788 | J18: 9,187 | K18: 9,648 | L18: 10,253 | M18: 10,578 | N18: 38,603 | O18: 87,057
A19: Receipts:
A20: Individual income taxes.............................................................................................................................................................................. | B20: 2,176 | C20: 2,423 | D20: 2,645 | E20: 2,970 | F20: 3,204 | G20: 3,390 | H20: 3,563 | I20: 3,718 | J20: 3,899 | K20: 4,104 | L20: 4,312 | M20: 4,540 | N20: 15,773 | O20: 36,345
A21: Corporation income taxes.............................................................................................................................................................................. | B21: 420 | C21: 515 | D21: 498 | E21: 497 | F21: 488 | G21: 491 | H21: 493 | I21: 492 | J21: 502 | K21: 530 | L21: 557 | M21: 588 | N21: 2,468 | O21: 5,136
A22: Social insurance and retirement receipts:
A23: Social Security payroll taxes .............................................................................................................................................................................. | B23: 1,194 | C23: 1,259 | D23: 1,307 | E23: 1,367 | F23: 1,424 | G23: 1,497 | H23: 1,555 | I23: 1,620 | J23: 1,685 | K23: 1,749 | L23: 1,839 | M23: 1,909 | N23: 7,150 | O23: 15,953
A24: Medicare payroll taxes .............................................................................................................................................................................. | B24: 358 | C24: 387 | D24: 400 | E24: 418 | F24: 436 | G24: 460 | H24: 480 | I24: 502 | J24: 525 | K24: 547 | L24: 578 | M24: 601 | N24: 2,194 | O24: 4,947
A25: Unemployment insurance.............................................................................................................................................................................. | B25: 49 | C25: 49 | D25: 53 | E25: 56 | F25: 58 | G25: 60 | H25: 62 | I25: 65 | J25: 66 | K25: 68 | L25: 70 | M25: 72 | N25: 289 | O25: 629
A26: Other retirement.............................................................................................................................................................................. | B26: 14 | C26: 14 | D26: 14 | E26: 15 | F26: 16 | G26: 16 | H26: 17 | I26: 18 | J26: 18 | K26: 19 | L26: 20 | M26: 21 | N26: 78 | O26: 174
A27: Excise taxes............................................................................................................................................................................... | B27: 76 | C27: 89 | D27: 102 | E27: 98 | F27: 98 | G27: 97 | H27: 99 | I27: 101 | J27: 100 | K27: 101 | L27: 102 | M27: 101 | N27: 496 | O27: 1,001
A28: Estate and gift taxes.............................................................................................................................................................................. | B28: 34 | C28: 32 | D28: 36 | E28: 38 | F28: 51 | G28: 54 | H28: 56 | I28: 60 | J28: 63 | K28: 68 | L28: 74 | M28: 77 | N28: 235 | O28: 576
A29: Customs duties.............................................................................................................................................................................. | B29: 80 | C29: 77 | D29: 63 | E29: 54 | F29: 54 | G29: 53 | H29: 54 | I29: 55 | J29: 56 | K29: 48 | L29: 49 | M29: 50 | N29: 279 | O29: 537
A30: Deposits of earnings, Federal Reserve System.............................................................................................................................................................................. | B30: 1 | C30: 2 | D30: 0 | E30: 0 | F30: 21 | G30: 35 | H30: 47 | I30: 58 | J30: 68 | K30: 76 | L30: 83 | M30: 88 | N30: 103 | O30: 476
A31: Other miscellaneous receipts.............................................................................................................................................................................. | B31: 40 | C31: 37 | D31: 36 | E31: 39 | F31: 41 | G31: 44 | H31: 48 | I31: 52 | J31: 56 | K31: 59 | L31: 62 | M31: 64 | N31: 209 | O31: 504
A32: Total receipts.............................................................................................................................................................................. | B32: 4,441 | C32: 4,885 | D32: 5,155 | E32: 5,553 | F32: 5,893 | G32: 6,199 | H32: 6,475 | I32: 6,740 | J32: 7,038 | K32: 7,370 | L32: 7,745 | M32: 8,112 | N32: 29,274 | O32: 66,278
A34: Deficit.............................................................................................................................................................................. | B34: 1,694 | C34: 1,977 | D34: 1,992 | E34: 1,866 | F34: 1,798 | G34: 1,846 | H34: 1,826 | I34: 2,048 | J34: 2,149 | K34: 2,279 | L34: 2,508 | M34: 2,466 | N34: 9,329 | O34: 20,779
A36: Net interest.............................................................................................................................................................................. | B36: 658 | C36: 899 | D36: 991 | E36: 1,047 | F36: 1,094 | G36: 1,148 | H36: 1,233 | I36: 1,307 | J36: 1,390 | K36: 1,478 | L36: 1,563 | M36: 1,642 | N36: 5,514 | O36: 12,894
A37: Primary deficit.............................................................................................................................................................................. | B37: 1,035 | C37: 1,078 | D37: 1,001 | E37: 819 | F37: 704 | G37: 697 | H37: 593 | I37: 742 | J37: 760 | K37: 801 | L37: 945 | M37: 823 | N37: 3,815 | O37: 7,885
A39: On-budget deficit.............................................................................................................................................................................. | B39: 1,666 | C39: 1,920 | D39: 1,894 | E39: 1,745 | F39: 1,652 | G39: 1,686 | H39: 1,637 | I39: 1,832 | J39: 1,900 | K39: 1,994 | L39: 2,213 | M39: 2,129 | N39: 8,614 | O39: 18,682
A40: Off-budget deficit....................................................................................... | B40: 27 | C40: 57 | D40: 98 | E40: 121 | F40: 147 | G40: 160 | H40: 189 | I40: 216 | J40: 249 | K40: 285 | L40: 295 | M40: 337 | N40: 715 | O40: 2,097

Sheet S-3
A1: Table S-3. Proposed Budget by Category
A2: (In billions of dollars)
N3: Totals
B4: 2023 | C4: 2024 | D4: 2025 | E4: 2026 | F4: 2027 | G4: 2028 | H4: 2029 | I4: 2030 | J4: 2031 | K4: 2032 | L4: 2033 | M4: 2034 | N4: 2025-2029 | O4: 2025-2034
A6: Outlays:
A7: Discretionary programs:
A8: Defense.............................................................................................................................................................................. | B8: 806 | C8: 841 | D8: 904 | E8: 921 | F8: 934 | G8: 953 | H8: 966 | I8: 974 | J8: 982 | K8: 990 | L8: 998 | M8: 1,005 | N8: 4,678 | O8: 9,627
A9: Non-defense.............................................................................................................................................................................. | B9: 912 | C9: 989 | D9: 1,047 | E9: 1,028 | F9: 1,017 | G9: 994 | H9: 989 | I9: 995 | J9: 1,002 | K9: 1,017 | L9: 1,037 | M9: 1,057 | N9: 5,075 | O9: 10,183
A10: Subtotal, discretionary programs....................................................................................... | B10: 1,718 | C10: 1,830 | D10: 1,951 | E10: 1,949 | F10: 1,951 | G10: 1,948 | H10: 1,955 | I10: 1,969 | J10: 1,983 | K10: 2,007 | L10: 2,035 | M10: 2,061 | N10: 9,753 | O10: 19,809
A11: Mandatory programs:
A12: Social Security.............................................................................................................................................................................. | B12: 1,348 | C12: 1,454 | D12: 1,552 | E12: 1,648 | F12: 1,741 | G12: 1,835 | H12: 1,928 | I12: 2,026 | J12: 2,127 | K12: 2,231 | L12: 2,338 | M12: 2,446 | N12: 8,704 | O12: 19,873
A13: Medicare.............................................................................................................................................................................. | B13: 839 | C13: 850 | D13: 954 | E13: 1,011 | F13: 1,088 | G13: 1,226 | H13: 1,181 | I13: 1,339 | J13: 1,430 | K13: 1,538 | L13: 1,743 | M13: 1,773 | N13: 5,460 | O13: 13,282
A14: Medicaid.............................................................................................................................................................................. | B14: 616 | C14: 618 | D14: 643 | E14: 684 | F14: 731 | G14: 773 | H14: 824 | I14: 876 | J14: 934 | K14: 998 | L14: 1,066 | M14: 1,139 | N14: 3,655 | O14: 8,667
A15: Other mandatory programs....................................................................................... | B15: 955 | C15: 1,225 | D15: 1,355 | E15: 1,288 | F15: 1,281 | G15: 1,333 | H15: 1,391 | I15: 1,530 | J15: 1,537 | K15: 1,607 | L15: 1,655 | M15: 1,670 | N15: 6,648 | O15: 14,646
A16: Subtotal, mandatory programs....................................................................................... | B16: 3,758 | C16: 4,148 | D16: 4,504 | E16: 4,630 | F16: 4,841 | G16: 5,168 | H16: 5,324 | I16: 5,770 | J16: 6,028 | K16: 6,374 | L16: 6,801 | M16: 7,028 | N16: 24,467 | O16: 56,468
A17: Net interest.............................................................................................................................................................................. | B17: 658 | C17: 897 | D17: 984 | E17: 1,034 | F17: 1,075 | G17: 1,123 | H17: 1,199 | I17: 1,264 | J17: 1,337 | K17: 1,414 | L17: 1,486 | M17: 1,549 | N17: 5,415 | O17: 12,465
A18: Total outlays.............................................................................................................................................................................. | B18: 6,135 | C18: 6,875 | D18: 7,439 | E18: 7,613 | F18: 7,867 | G18: 8,238 | H18: 8,478 | I18: 9,003 | J18: 9,349 | K18: 9,796 | L18: 10,322 | M18: 10,638 | N18: 39,635 | O18: 88,742
A19: Receipts:
A20: Individual income taxes....................................................................................... | B20: 2,176 | C20: 2,417 | D20: 2,686 | E20: 3,038 | F20: 3,247 | G20: 3,444 | H20: 3,617 | I20: 3,795 | J20: 3,981 | K20: 4,183 | L20: 4,393 | M20: 4,637 | N20: 16,032 | O20: 37,022
A21: Corporation income taxes....................................................................................... | B21: 420 | C21: 610 | D21: 703 | E21: 769 | F21: 759 | G21: 756 | H21: 757 | I21: 765 | J21: 788 | K21: 830 | L21: 877 | M21: 927 | N21: 3,744 | O21: 7,930
A22: Social insurance and retirement receipts:
A23: Social Security payroll taxes ....................................................................................... | B23: 1,194 | C23: 1,259 | D23: 1,306 | E23: 1,366 | F23: 1,422 | G23: 1,494 | H23: 1,553 | I23: 1,618 | J23: 1,683 | K23: 1,747 | L23: 1,837 | M23: 1,907 | N23: 7,143 | O23: 15,936
A24: Medicare payroll taxes ....................................................................................... | B24: 358 | C24: 415 | D24: 546 | E24: 522 | F24: 548 | G24: 578 | H24: 604 | I24: 631 | J24: 659 | K24: 688 | L24: 726 | M24: 759 | N24: 2,797 | O24: 6,260
A25: Unemployment insurance....................................................................................... | B25: 49 | C25: 49 | D25: 53 | E25: 56 | F25: 58 | G25: 60 | H25: 62 | I25: 64 | J25: 66 | K25: 68 | L25: 70 | M25: 72 | N25: 289 | O25: 629
A26: Other retirement.............................................................................................................................................................................. | B26: 14 | C26: 14 | D26: 14 | E26: 15 | F26: 16 | G26: 16 | H26: 17 | I26: 18 | J26: 18 | K26: 19 | L26: 20 | M26: 21 | N26: 78 | O26: 174
A27: Excise taxes............................................................................................................................................................................... | B27: 76 | C27: 89 | D27: 116 | E27: 111 | F27: 111 | G27: 110 | H27: 113 | I27: 115 | J27: 115 | K27: 117 | L27: 118 | M27: 119 | N27: 561 | O27: 1,145
A28: Estate and gift taxes.............................................................................................................................................................................. | B28: 34 | C28: 32 | D28: 37 | E28: 39 | F28: 55 | G28: 59 | H28: 63 | I28: 69 | J28: 71 | K28: 78 | L28: 84 | M28: 88 | N28: 253 | O28: 643
A29: Customs duties.............................................................................................................................................................................. | B29: 80 | C29: 77 | D29: 63 | E29: 55 | F29: 54 | G29: 54 | H29: 54 | I29: 55 | J29: 57 | K29: 48 | L29: 49 | M29: 50 | N29: 280 | O29: 540
A30: Deposits of earnings, Federal Reserve System....................................................................................... | B30: 1 | C30: 2 | D30: 0 | E30: 0 | F30: 21 | G30: 35 | H30: 47 | I30: 58 | J30: 68 | K30: 76 | L30: 83 | M30: 88 | N30: 103 | O30: 476
A31: Other miscellaneous receipts....................................................................................... | B31: 40 | C31: 37 | D31: 37 | E31: 40 | F31: 42 | G31: 45 | H31: 49 | I31: 53 | J31: 57 | K31: 60 | L31: 63 | M31: 65 | N31: 212 | O31: 510
A32: Total receipts.............................................................................................................................................................................. | B32: 4,441 | C32: 5,001 | D32: 5,562 | E32: 6,011 | F32: 6,332 | G32: 6,652 | H32: 6,936 | I32: 7,241 | J32: 7,563 | K32: 7,915 | L32: 8,321 | M32: 8,733 | N32: 31,494 | O32: 71,266
A34: Deficit.............................................................................................................................................................................. | B34: 1,694 | C34: 1,874 | D34: 1,878 | E34: 1,601 | F34: 1,535 | G34: 1,586 | H34: 1,542 | I34: 1,762 | J34: 1,785 | K34: 1,881 | L34: 2,001 | M34: 1,905 | N34: 8,142 | O34: 17,476
A36: Net interest.............................................................................................................................................................................. | B36: 658 | C36: 897 | D36: 984 | E36: 1,034 | F36: 1,075 | G36: 1,123 | H36: 1,199 | I36: 1,264 | J36: 1,337 | K36: 1,414 | L36: 1,486 | M36: 1,549 | N36: 5,415 | O36: 12,465
A37: Primary deficit.............................................................................................................................................................................. | B37: 1,035 | C37: 976 | D37: 893 | E37: 567 | F37: 460 | G37: 463 | H37: 343 | I37: 498 | J37: 448 | K37: 466 | L37: 516 | M37: 357 | N37: 2,727 | O37: 5,011
A39: On-budget deficit.............................................................................................................................................................................. | B39: 1,666 | C39: 1,817 | D39: 1,780 | E39: 1,480 | F39: 1,387 | G39: 1,424 | H39: 1,351 | I39: 1,544 | J39: 1,535 | K39: 1,594 | L39: 1,704 | M39: 1,566 | N39: 7,421 | O39: 15,365
A40: Off-budget deficit....................................................................................... | B40: 27 | C40: 57 | D40: 97 | E40: 121 | F40: 149 | G40: 162 | H40: 191 | I40: 217 | J40: 251 | K40: 286 | L40: 297 | M40: 339 | N40: 720 | O40: 2,111

Sheet S-4
A1: Table S-4. Proposed Budget by Category as a Percent of GDP
A2: (As a percent of GDP)
N3: Averages
B4: 2023 | C4: 2024 | D4: 2025 | E4: 2026 | F4: 2027 | G4: 2028 | H4: 2029 | I4: 2030 | J4: 2031 | K4: 2032 | L4: 2033 | M4: 2034 | N4: 2025-2029 | O4: 2025-2034
A6: Outlays:
A7: Discretionary programs:
A8: Defense.............................................................................................................................................................................. | B8: 3.0 | C8: 3.0 | D8: 3.0 | E8: 3.0 | F8: 2.9 | G8: 2.8 | H8: 2.8 | I8: 2.7 | J8: 2.6 | K8: 2.5 | L8: 2.4 | M8: 2.3 | N8: 2.9 | O8: 2.7
A9: Non-defense.............................................................................................................................................................................. | B9: 3.4 | C9: 3.5 | D9: 3.5 | E9: 3.3 | F9: 3.1 | G9: 3.0 | H9: 2.8 | I9: 2.7 | J9: 2.6 | K9: 2.6 | L9: 2.5 | M9: 2.4 | N9: 3.2 | O9: 2.9
A10: Subtotal, discretionary programs....................................................................................... | B10: 6.4 | C10: 6.4 | D10: 6.6 | E10: 6.3 | F10: 6.0 | G10: 5.8 | H10: 5.6 | I10: 5.4 | J10: 5.2 | K10: 5.1 | L10: 4.9 | M10: 4.8 | N10: 6.1 | O10: 5.6
A11: Mandatory programs:
A12: Social Security.............................................................................................................................................................................. | B12: 5.0 | C12: 5.1 | D12: 5.2 | E12: 5.3 | F12: 5.4 | G12: 5.5 | H12: 5.5 | I12: 5.5 | J12: 5.6 | K12: 5.6 | L12: 5.6 | M12: 5.7 | N12: 5.4 | O12: 5.5
A13: Medicare.............................................................................................................................................................................. | B13: 3.1 | C13: 3.0 | D13: 3.2 | E13: 3.3 | F13: 3.4 | G13: 3.6 | H13: 3.4 | I13: 3.7 | J13: 3.8 | K13: 3.9 | L13: 4.2 | M13: 4.1 | N13: 3.4 | O13: 3.6
A14: Medicaid.............................................................................................................................................................................. | B14: 2.3 | C14: 2.2 | D14: 2.2 | E14: 2.2 | F14: 2.3 | G14: 2.3 | H14: 2.4 | I14: 2.4 | J14: 2.5 | K14: 2.5 | L14: 2.6 | M14: 2.6 | N14: 2.3 | O14: 2.4
A15: Other mandatory programs....................................................................................... | B15: 3.5 | C15: 4.3 | D15: 4.6 | E15: 4.2 | F15: 4.0 | G15: 4.0 | H15: 4.0 | I15: 4.2 | J15: 4.0 | K15: 4.0 | L15: 4.0 | M15: 3.9 | N15: 4.1 | O15: 4.1
A16: Subtotal, mandatory programs....................................................................................... | B16: 13.9 | C16: 14.6 | D16: 15.1 | E16: 14.9 | F16: 15.0 | G16: 15.4 | H16: 15.2 | I16: 15.8 | J16: 15.8 | K16: 16.0 | L16: 16.4 | M16: 16.2 | N16: 15.1 | O16: 15.6
A17: Net interest.............................................................................................................................................................................. | B17: 2.4 | C17: 3.2 | D17: 3.3 | E17: 3.3 | F17: 3.3 | G17: 3.3 | H17: 3.4 | I17: 3.5 | J17: 3.5 | K17: 3.6 | L17: 3.6 | M17: 3.6 | N17: 3.3 | O17: 3.4
A18: Total outlays.............................................................................................................................................................................. | B18: 22.7 | C18: 24.2 | D18: 25.0 | E18: 24.5 | F18: 24.4 | G18: 24.5 | H18: 24.2 | I18: 24.7 | J18: 24.5 | K18: 24.6 | L18: 24.9 | M18: 24.6 | N18: 24.5 | O18: 24.6
A19: Receipts:
A20: Individual income taxes....................................................................................... | B20: 8.1 | C20: 8.5 | D20: 9.0 | E20: 9.8 | F20: 10.1 | G20: 10.2 | H20: 10.3 | I20: 10.4 | J20: 10.5 | K20: 10.5 | L20: 10.6 | M20: 10.7 | N20: 9.9 | O20: 10.2
A21: Corporation income taxes....................................................................................... | B21: 1.6 | C21: 2.1 | D21: 2.4 | E21: 2.5 | F21: 2.4 | G21: 2.2 | H21: 2.2 | I21: 2.1 | J21: 2.1 | K21: 2.1 | L21: 2.1 | M21: 2.1 | N21: 2.3 | O21: 2.2
A22: Social insurance and retirement receipts:
A23: Social Security payroll taxes ....................................................................................... | B23: 4.4 | C23: 4.4 | D23: 4.4 | E23: 4.4 | F23: 4.4 | G23: 4.4 | H23: 4.4 | I23: 4.4 | J23: 4.4 | K23: 4.4 | L23: 4.4 | M23: 4.4 | N23: 4.4 | O23: 4.4
A24: Medicare payroll taxes ....................................................................................... | B24: 1.3 | C24: 1.5 | D24: 1.8 | E24: 1.7 | F24: 1.7 | G24: 1.7 | H24: 1.7 | I24: 1.7 | J24: 1.7 | K24: 1.7 | L24: 1.8 | M24: 1.8 | N24: 1.7 | O24: 1.7
A25: Unemployment insurance....................................................................................... | B25: 0.2 | C25: 0.2 | D25: 0.2 | E25: 0.2 | F25: 0.2 | G25: 0.2 | H25: 0.2 | I25: 0.2 | J25: 0.2 | K25: 0.2 | L25: 0.2 | M25: 0.2 | N25: 0.2 | O25: 0.2
A26: Other retirement.............................................................................................................................................................................. | B26: 0.1 | C26: 0.0 | D26: 0.0 | E26: 0.0 | F26: 0.0 | G26: 0.0 | H26: 0.0 | I26: 0.0 | J26: 0.0 | K26: 0.0 | L26: 0.0 | M26: 0.0 | N26: 0.0 | O26: 0.0
A27: Excise taxes............................................................................................................................................................................... | B27: 0.3 | C27: 0.3 | D27: 0.4 | E27: 0.4 | F27: 0.3 | G27: 0.3 | H27: 0.3 | I27: 0.3 | J27: 0.3 | K27: 0.3 | L27: 0.3 | M27: 0.3 | N27: 0.3 | O27: 0.3
A28: Estate and gift taxes.............................................................................................................................................................................. | B28: 0.1 | C28: 0.1 | D28: 0.1 | E28: 0.1 | F28: 0.2 | G28: 0.2 | H28: 0.2 | I28: 0.2 | J28: 0.2 | K28: 0.2 | L28: 0.2 | M28: 0.2 | N28: 0.2 | O28: 0.2
A29: Customs duties.............................................................................................................................................................................. | B29: 0.3 | C29: 0.3 | D29: 0.2 | E29: 0.2 | F29: 0.2 | G29: 0.2 | H29: 0.2 | I29: 0.2 | J29: 0.1 | K29: 0.1 | L29: 0.1 | M29: 0.1 | N29: 0.2 | O29: 0.2
A30: Deposits of earnings, Federal Reserve System....................................................................................... | B30: 0.0 | C30: 0.0 | D30: 0 | E30: 0 | F30: 0.1 | G30: 0.1 | H30: 0.1 | I30: 0.2 | J30: 0.2 | K30: 0.2 | L30: 0.2 | M30: 0.2 | N30: 0.1 | O30: 0.1
A31: Other miscellaneous receipts....................................................................................... | B31: 0.1 | C31: 0.1 | D31: 0.1 | E31: 0.1 | F31: 0.1 | G31: 0.1 | H31: 0.1 | I31: 0.1 | J31: 0.1 | K31: 0.2 | L31: 0.2 | M31: 0.1 | N31: 0.1 | O31: 0.1
A32: Total receipts.............................................................................................................................................................................. | B32: 16.5 | C32: 17.6 | D32: 18.7 | E32: 19.4 | F32: 19.6 | G32: 19.8 | H32: 19.8 | I32: 19.8 | J32: 19.9 | K32: 19.9 | L32: 20.1 | M32: 20.2 | N32: 19.5 | O32: 19.7
A34: Deficit.............................................................................................................................................................................. | B34: 6.3 | C34: 6.6 | D34: 6.3 | E34: 5.2 | F34: 4.8 | G34: 4.7 | H34: 4.4 | I34: 4.8 | J34: 4.7 | K34: 4.7 | L34: 4.8 | M34: 4.4 | N34: 5.1 | O34: 4.9
A36: Net interest.............................................................................................................................................................................. | B36: 2.4 | C36: 3.2 | D36: 3.3 | E36: 3.3 | F36: 3.3 | G36: 3.3 | H36: 3.4 | I36: 3.5 | J36: 3.5 | K36: 3.6 | L36: 3.6 | M36: 3.6 | N36: 3.3 | O36: 3.4
A37: Primary deficit.............................................................................................................................................................................. | B37: 3.8 | C37: 3.4 | D37: 3.0 | E37: 1.8 | F37: 1.4 | G37: 1.4 | H37: 1.0 | I37: 1.4 | J37: 1.2 | K37: 1.2 | L37: 1.2 | M37: 0.8 | N37: 1.7 | O37: 1.4
A39: On-budget deficit.............................................................................................................................................................................. | B39: 6.2 | C39: 6.4 | D39: 6.0 | E39: 4.8 | F39: 4.3 | G39: 4.2 | H39: 3.9 | I39: 4.2 | J39: 4.0 | K39: 4.0 | L39: 4.1 | M39: 3.6 | N39: 4.6 | O39: 4.3
A40: Off-budget deficit....................................................................................... | B40: 0.1 | C40: 0.2 | D40: 0.3 | E40: 0.4 | F40: 0.5 | G40: 0.5 | H40: 0.5 | I40: 0.6 | J40: 0.7 | K40: 0.7 | L40: 0.7 | M40: 0.8 | N40: 0.4 | O40: 0.6

Sheet S-5
A1: Table S-5. ESTIMATED SPENDING FROM 2025 BALANCES OF BUDGET AUTHORITY: DISCRETIONARY PROGRAMS
A3: (In billions of dollars)
B6: Total
A7: Outlays from end-of-2025 balances:
A8: 2026 | B8: 1,045.9
A9: 2027 | B9: 479.9
A10: 2028 | B10: 239.0
A11: 2029 | B11: 122.9
A12: 2030 | B12: 64.0
A13: 2031 | B13: 34.3
A14: 2032 | B14: 21.2
A15: 2033 | B15: 14.1
A16: 2034 | B16: 9.5
A17: Note: Required by 31 USC 1106(a)(3). Balances as of the end of 2025 include unspent balances of discretionary budget authority provided in 2025 and prior years, as well as unspent balances of mandatory contract authority that is subject to discretionary obligation limitations.

Sheet S-6
A1: Table S-6. Outlays for Mandatory Programs Under Current Law1
A2: (In billions of dollars)
N3: Totals
B4: 2023 | C4: 2024 | D4: 2025 | E4: 2026 | F4: 2027 | G4: 2028 | H4: 2029 | I4: 2030 | J4: 2031 | K4: 2032 | L4: 2033 | M4: 2034 | N4: 2025-2029 | O4: 2025-2034
A6: Outlays:
A7: Human resources programs:
A8: Education, training, employment and social services.............................................................................................................................................................................. | B8: -126 | C8: 180 | D8: 73 | E8: 54 | F8: 52 | G8: 54 | H8: 55 | I8: 54 | J8: 54 | K8: 54 | L8: 55 | M8: 55 | N8: 288 | O8: 561
A9: Health.............................................................................................................................................................................. | B9: 789 | C9: 825 | D9: 842 | E9: 863 | F9: 911 | G9: 959 | H9: 1,015 | I9: 1,070 | J9: 1,120 | K9: 1,183 | L9: 1,251 | M9: 1,324 | N9: 4,590 | O9: 10,538
A10: Medicare.............................................................................................................................................................................. | B10: 839 | C10: 850 | D10: 954 | E10: 1,012 | F10: 1,095 | G10: 1,244 | H10: 1,200 | I10: 1,364 | J10: 1,455 | K10: 1,570 | L10: 1,811 | M10: 1,848 | N10: 5,504 | O10: 13,551
A11: Income security.............................................................................................................................................................................. | B11: 674 | C11: 597 | D11: 579 | E11: 612 | F11: 581 | G11: 608 | H11: 601 | I11: 629 | J11: 643 | K11: 658 | L11: 687 | M11: 691 | N11: 2,980 | O11: 6,288
A12: Social Security.............................................................................................................................................................................. | B12: 1,348 | C12: 1,454 | D12: 1,552 | E12: 1,648 | F12: 1,741 | G12: 1,835 | H12: 1,928 | I12: 2,026 | J12: 2,127 | K12: 2,231 | L12: 2,338 | M12: 2,446 | N12: 8,704 | O12: 19,873
A13: Veterans benefits and services.............................................................................................................................................................................. | B13: 170 | C13: 206 | D13: 257 | E13: 272 | F13: 291 | G13: 330 | H13: 307 | I13: 349 | J13: 371 | K13: 395 | L13: 445 | M13: 445 | N13: 1,457 | O13: 3,463
A14: Subtotal, human resources programs....................................................................................... | B14: 3,694 | C14: 4,112 | D14: 4,257 | E14: 4,461 | F14: 4,670 | G14: 5,030 | H14: 5,106 | I14: 5,493 | J14: 5,771 | K14: 6,091 | L14: 6,586 | M14: 6,808 | N14: 23,524 | O14: 54,273
A16: Other mandatory programs:
A17: International affairs.............................................................................................................................................................................. | B17: -14 | C17: -1 | D17: 3 | E17: 2 | F17: 1 | G17: 1 | H17: 0 | I17: 0 | J17: 0 | K17: -0 | L17: -0 | M17: -0 | N17: 7 | O17: 6
A18: Energy.............................................................................................................................................................................. | B18: -6 | C18: 13 | D18: 24 | E18: 30 | F18: 40 | G18: 39 | H18: 38 | I18: 41 | J18: 44 | K18: 52 | L18: 33 | M18: 20 | N18: 171 | O18: 361
A19: Natural resources and environment.............................................................................................................................................................................. | B19: 0 | C19: 2 | D19: 31 | E19: 14 | F19: 10 | G19: 8 | H19: 5 | I19: 2 | J19: 0 | K19: -1 | L19: -1 | M19: -2 | N19: 67 | O19: 66
A20: Agriculture....................................................................................... | B20: 26 | C20: 30 | D20: 26 | E20: 25 | F20: 23 | G20: 22 | H20: 22 | I20: 22 | J20: 22 | K20: 22 | L20: 22 | M20: 22 | N20: 118 | O20: 228
A21: Commerce and housing credit....................................................................................... | B21: 94 | C21: 37 | D21: -27 | E21: 2 | F21: 12 | G21: -64 | H21: 20 | I21: 23 | J21: 24 | K21: 21 | L21: 17 | M21: 11 | N21: -57 | O21: 39
A22: Transportation....................................................................................... | B22: 11 | C22: 6 | D22: -1 | E22: -1 | F22: 3 | G22: 5 | H22: 4 | I22: 2 | J22: 2 | K22: 4 | L22: 4 | M22: 4 | N22: 10 | O22: 26
A23: Administration of justice....................................................................................... | B23: 7 | C23: 5 | D23: 8 | E23: 3 | F23: 2 | G23: 2 | H23: 2 | I23: 1 | J23: 0 | K23: 7 | L23: 6 | M23: 5 | N23: 18 | O23: 38
A24: General government....................................................................................... | B24: 18 | C24: 19 | D24: 24 | E24: 26 | F24: 18 | G24: 19 | H24: 19 | I24: 14 | J24: 13 | K24: 12 | L24: 11 | M24: 11 | N24: 105 | O24: 167
A25: Undistributed offsetting receipts....................................................................................... | B25: -132 | C25: -146 | D25: -150 | E25: -156 | F25: -170 | G25: -165 | H25: -168 | I25: -173 | J25: -176 | K25: -180 | L25: -184 | M25: -188 | N25: -808 | O25: -1,710
A26: Other functions....................................................................................... | B26: 60 | C26: 70 | D26: 35 | E26: 32 | F26: 31 | G26: 30 | H26: 30 | I26: 31 | J26: 31 | K26: 30 | L26: 34 | M26: 35 | N26: 160 | O26: 321
A27: Subtotal, other mandatory programs....................................................................................... | B27: 64 | C27: 36 | D27: -26 | E27: -23 | F27: -28 | G27: -104 | H27: -28 | I27: -37 | J27: -39 | K27: -34 | L27: -58 | M27: -82 | N27: -210 | O27: -460
A28: Total, outlays for mandatory programs under current law.............................................................................................................................................................................. | B28: 3,758 | C28: 4,147 | D28: 4,231 | E28: 4,438 | F28: 4,642 | G28: 4,926 | H28: 5,077 | I28: 5,455 | J28: 5,732 | K28: 6,058 | L28: 6,528 | M28: 6,726 | N28: 23,315 | O28: 53,814
A30: 1This table meets the requirements of 31 USC 1106(a)(2).

Sheet S-7
A1: TABLE S-7. FEDERAL GOVERNMENT FINANCING AND DEBT
A2: (Dollar amounts in billions)
B4: Actual | C4: Estimate
B5: 2023 | C5: 2024 | D5: 2025 | E5: 2026 | F5: 2027 | G5: 2028 | H5: 2029 | I5: 2030 | J5: 2031 | K5: 2032 | L5: 2033 | M5: 2034
A6: Financing:
A7: Unified budget deficit:
A8: Primary deficit....................................................................................... | B8: 1,035 | C8: 976 | D8: 893 | E8: 567 | F8: 460 | G8: 463 | H8: 343 | I8: 498 | J8: 448 | K8: 466 | L8: 516 | M8: 357
A9: Net interest....................................................................................... | B9: 658 | C9: 897 | D9: 984 | E9: 1,034 | F9: 1,075 | G9: 1,123 | H9: 1,199 | I9: 1,264 | J9: 1,337 | K9: 1,414 | L9: 1,486 | M9: 1,549
A10: Unified budget deficit................................................................ | B10: 1,694 | C10: 1,874 | D10: 1,878 | E10: 1,601 | F10: 1,535 | G10: 1,586 | H10: 1,542 | I10: 1,762 | J10: 1,785 | K10: 1,881 | L10: 2,001 | M10: 1,905
A11: As a percent of GDP....................................................................................... | B11: 6.3% | C11: 6.6% | D11: 6.3% | E11: 5.2% | F11: 4.8% | G11: 4.7% | H11: 4.4% | I11: 4.8% | J11: 4.7% | K11: 4.7% | L11: 4.8% | M11: 4.4%
A13: Other transactions affecting borrowing from the public:
A14: Changes in financial assets and liabilities:1
A15: Change in Treasury operating cash balance......................................................................................... | B15: 21 | C15: 193 | D15: 0 | E15: 0 | F15: 0 | G15: 0 | H15: 0 | I15: 0 | J15: 0 | K15: 0 | L15: 0 | M15: 0
A16: Net disbursements of credit financing accounts:
A17: Direct loan and Troubled Asset Relief Program
A18: (TARP) equity purchase accounts....................................................................................... | B18: 259 | C18: -121 | D18: 22 | E18: 89 | F18: 111 | G18: 75 | H18: 55 | I18: 56 | J18: 48 | K18: 35 | L18: 33 | M18: 35
A19: Guaranteed loan accounts.......................................................................................... | B19: 37 | C19: 20 | D19: 1 | E19: 6 | F19: 3 | G19: 4 | H19: 4 | I19: 5 | J19: 5 | K19: 5 | L19: 5 | M19: 5
A20: Net purchases of non-Federal securities by the National
A21: Railroad Retirement Investment Trust (NRRIT)....................................................................................... | B21: 1 | C21: 1 | D21: 0 | E21: -1 | F21: -1 | G21: -1 | H21: -1 | I21: -1 | J21: -1 | K21: -1 | L21: -0 | M21: -0
A22: Net change in other financial assets and liabilities2.......................................................................................... | B22: -30 | C22: 0 | D22: 0 | E22: 0 | F22: 0 | G22: 0 | H22: 0 | I22: 0 | J22: 0 | K22: 0 | L22: 0 | M22: 0
A23: Subtotal, changes in financial assets and liabilities....................................................................................... | B23: 288 | C23: 92 | D23: 24 | E23: 94 | F23: 113 | G23: 79 | H23: 59 | I23: 60 | J23: 52 | K23: 40 | L23: 37 | M23: 40
A24: Seigniorage on coins........................................................................................... | B24: 0 | C24: 0 | D24: -0 | E24: -0 | F24: -0 | G24: -0 | H24: -0 | I24: -0 | J24: -0 | K24: -0 | L24: -0 | M24: -0
A25: Total, other transactions affecting
A26: borrowing from the public........................................................................................... | B26: 288 | C26: 92 | D26: 23 | E26: 94 | F26: 113 | G26: 78 | H26: 58 | I26: 60 | J26: 52 | K26: 39 | L26: 37 | M26: 40
A27: Total, requirement to borrow from the public (equals
A28: change in debt held by the public)....................................................................................... | B28: 1,982 | C28: 1,966 | D28: 1,901 | E28: 1,695 | F28: 1,648 | G28: 1,664 | H28: 1,600 | I28: 1,822 | J28: 1,837 | K28: 1,920 | L28: 2,038 | M28: 1,945
A30: Changes in Debt Subject to Statutory Limitation:
A31: Change in debt held by the public....................................................................................... | B31: 1,982 | C31: 1,966 | D31: 1,901 | E31: 1,695 | F31: 1,648 | G31: 1,664 | H31: 1,600 | I31: 1,822 | J31: 1,837 | K31: 1,920 | L31: 2,038 | M31: 1,945
A32: Change in debt held by Government accounts....................................................................................... | B32: 168 | C32: 212 | D32: 204 | E32: 312 | F32: 167 | G32: 75 | H32: 212 | I32: 110 | J32: 96 | K32: 40 | L32: -55 | M32: 15
A33: Change in other factors....................................................................................... | B33: 51 | C33: -1 | D33: -2 | E33: -2 | F33: -1 | G33: 0 | H33: 1 | I33: 0 | J33: 1 | K33: 1 | L33: 2 | M33: 2
A34: Total, change in debt subject to statutory limitation....................................................................................... | B34: 2,201 | C34: 2,177 | D34: 2,103 | E34: 2,006 | F34: 1,814 | G34: 1,740 | H34: 1,813 | I34: 1,933 | J34: 1,934 | K34: 1,961 | L34: 1,985 | M34: 1,962
A36: Debt Subject to Statutory Limitation, End of Year:
A37: Debt issued by Treasury................................................................................................ | B37: 32,968 | C37: 35,144 | D37: 37,247 | E37: 39,252 | F37: 41,065 | G37: 42,804 | H37: 44,616 | I37: 46,548 | J37: 48,483 | K37: 50,444 | L37: 52,429 | M37: 54,390
A38: Adjustment for discount, premium, and coverage3....................................................................................... | B38: 102 | C38: 103 | D38: 103 | E38: 104 | F38: 105 | G38: 106 | H38: 106 | I38: 106 | J38: 107 | K38: 107 | L38: 107 | M38: 108
A39: Total, debt subject to statutory limitation4.......................................... | B39: 33,070 | C39: 35,247 | D39: 37,350 | E39: 39,356 | F39: 41,169 | G39: 42,909 | H39: 44,722 | I39: 46,655 | J39: 48,589 | K39: 50,551 | L39: 52,536 | M39: 54,497
A41: Debt Outstanding, End of Year:
A42: Gross Federal debt:5
A43: Debt issued by Treasury.............................................................................................. | B43: 32,968 | C43: 35,144 | D43: 37,247 | E43: 39,252 | F43: 41,065 | G43: 42,804 | H43: 44,616 | I43: 46,548 | J43: 48,483 | K43: 50,444 | L43: 52,429 | M43: 54,390
A44: Debt issued by other agencies........................................................................................... | B44: 21 | C44: 22 | D44: 25 | E44: 27 | F44: 29 | G44: 30 | H44: 30 | I44: 30 | J44: 29 | K44: 28 | L44: 27 | M44: 26
A45: Total, gross Federal debt................................................................................................. | B45: 32,989 | C45: 35,166 | D45: 37,272 | E45: 39,279 | F45: 41,094 | G45: 42,833 | H45: 44,646 | I45: 46,578 | J45: 48,511 | K45: 50,472 | L45: 52,455 | M45: 54,415
A46: As a percent of GDP....................................................................................... | B46: 122.3% | C46: 123.6% | D46: 125.3% | E46: 126.7% | F46: 127.3% | G46: 127.4% | H46: 127.5% | I46: 127.6% | J46: 127.4% | K46: 127.0% | L46: 126.5% | M46: 125.7%
A47: Held by:
A48: Debt held by Government accounts...................................................................................................... | B48: 6,753 | C48: 6,965 | D48: 7,169 | E48: 7,482 | F48: 7,648 | G48: 7,724 | H48: 7,936 | I48: 8,046 | J48: 8,142 | K48: 8,183 | L48: 8,128 | M48: 8,143
A49: Debt held by the public6..................................................................................... | B49: 26,236 | C49: 28,201 | D49: 30,102 | E49: 31,798 | F49: 33,446 | G49: 35,110 | H49: 36,710 | I49: 38,532 | J49: 40,369 | K49: 42,289 | L49: 44,327 | M49: 46,272
A50: As a percent of GDP....................................................................................... | B50: 97.3% | C50: 99.1% | D50: 101.2% | E50: 102.5% | F50: 103.6% | G50: 104.4% | H50: 104.8% | I50: 105.6% | J50: 106.0% | K50: 106.4% | L50: 106.9% | M50: 106.9%
A52: Debt Held by the Public Net of Financial Assets:
A53: Debt held by the public..................................................................................... | B53: 26,236 | C53: 28,201 | D53: 30,102 | E53: 31,798 | F53: 33,446 | G53: 35,110 | H53: 36,710 | I53: 38,532 | J53: 40,369 | K53: 42,289 | L53: 44,327 | M53: 46,272
A54: Less financial assets net of liabilities:
A55: Treasury operating cash balance....................................................................................... | B55: 657 | C55: 850 | D55: 850 | E55: 850 | F55: 850 | G55: 850 | H55: 850 | I55: 850 | J55: 850 | K55: 850 | L55: 850 | M55: 850
A56: Credit financing account balances:
A57: Direct loan and TARP equity purchase accounts....................................................................................... | B57: 1,598 | C57: 1,477 | D57: 1,499 | E57: 1,588 | F57: 1,699 | G57: 1,773 | H57: 1,828 | I57: 1,885 | J57: 1,933 | K57: 1,968 | L57: 2,001 | M57: 2,036
A58: Guaranteed loan accounts....................................................................................... | B58: 83 | C58: 102 | D58: 104 | E58: 109 | F58: 113 | G58: 117 | H58: 122 | I58: 126 | J58: 131 | K58: 135 | L58: 140 | M58: 145
A59: Government-sponsored enterprise stock7....................................................................................... | B59: 240 | C59: 240 | D59: 240 | E59: 240 | F59: 240 | G59: 240 | H59: 240 | I59: 240 | J59: 240 | K59: 240 | L59: 240 | M59: 240
A60: Air carrier worker support warrants and notes8....................................................................................... | B60: 12 | C60: 12 | D60: 8 | E60: 4 | F60: 4 | G60: 3 | H60: 3 | I60: 2 | J60: 0 | K60: 0 | L60: 0 | M60: 0
A61: Emergency capital investment fund securities....................................................................................... | B61: 3 | C61: 3 | D61: 2 | E61: 2 | F61: 2 | G61: 2 | H61: 2 | I61: 2 | J61: 2 | K61: 2 | L61: 2 | M61: 2
A62: Non-Federal securities held by NRRIT....................................................................................... | B62: 24 | C62: 24 | D62: 24 | E62: 24 | F62: 23 | G62: 22 | H62: 21 | I62: 20 | J62: 20 | K62: 19 | L62: 19 | M62: 19
A63: Other assets net of liabilities....................................................................................... | B63: -109 | C63: -109 | D63: -109 | E63: -109 | F63: -109 | G63: -109 | H63: -109 | I63: -109 | J63: -109 | K63: -109 | L63: -109 | M63: -109
A64: Total, financial assets net of liabilities....................................................................................... | B64: 2,508 | C64: 2,600 | D64: 2,619 | E64: 2,709 | F64: 2,821 | G64: 2,899 | H64: 2,958 | I64: 3,016 | J64: 3,066 | K64: 3,106 | L64: 3,143 | M64: 3,182
A65: Debt held by the public net of financial assets....................................................................................... | B65: 23,728 | C65: 25,602 | D65: 27,483 | E65: 29,089 | F65: 30,624 | G65: 32,210 | H65: 33,752 | I65: 35,516 | J65: 37,302 | K65: 39,183 | L65: 41,185 | M65: 43,090
A66: As a percent of GDP....................................................................................... | B66: 88.0% | C66: 90.0% | D66: 92.4% | E66: 93.8% | F66: 94.8% | G66: 95.8% | H66: 96.4% | I66: 97.3% | J66: 97.9% | K66: 98.6% | L66: 99.3% | M66: 99.5%
A68: 1A decrease in the Treasury operating cash balance (which is an asset) is a means of financing a deficit and therefore has a negative sign. An increase in checks outstanding (which is a liability) is also a means of financing a deficit and therefore also has a negative sign.
A69: 2Includes checks outstanding, accrued interest payable on Treasury debt, uninvested deposit fund balances, allocations of special drawing rights, and other liability accounts; and, as an offset, cash and monetary assets (other than the Treasury operating cash balance), other asset accounts, and profit on sale of gold.
A70: 3Consists mainly of debt issued by the Federal Financing Bank (which is not subject to limit), the unamortized discount (less premium) on public issues of Treasury notes and bonds (other than zero-coupon bonds), and the unrealized discount on Government account series securities.
A71: 4Legislation enacted June 3, 2023 (Public Law 118-5), temporarily suspends the debt limit through January 1, 2025.
A72: 5Treasury securities held by the public and zero-coupon bonds held by Government accounts are almost all measured at sales price plus amortized discount or less amortized premium. Agency debt securities are almost all measured at face value. Treasury securities in the Government account series are otherwise measured at face value less unrealized discount (if any).
A73: 6At the end of 2023, the Federal Reserve Banks held $4,952.9 billion of Federal securities and the rest of the public held $21,282.7 billion. Debt held by the Federal Reserve Banks is not estimated for future years.
A74: 7Treasury’s warrants to purchase 79.9 percent of the common stock of the enterprises expire after September 7, 2028. The warrants were valued at $4 billion at the end of 2023.
A75: 8Portions of the notes and warrants issued under the Air carrier worker support program (Payroll support program) are scheduled to expire in 2025, 2026, 2030, and 2031.
